fUST/lending_fUST_20260206
["ID","MTS","AMOUNT","RATE_DAILY","PERIOD"]
[404617487,1770331845107,-452.064041,0.00039701,120]
[404617488,1770331845117,-452.064041,0.00039701,120]
[404617489,1770331845127,-452.064041,0.00039701,120]
[404617490,1770331845136,-452.064041,0.00039701,120]
[404617491,1770331845146,-1847.314657,0.00039701,120]
[404617492,1770331845156,-1847.314657,0.00039701,120]
[404617493,1770331845254,-1847.314657,0.00039701,120]
[404617494,1770331845263,-1847.314657,0.00039701,120]
[404617495,1770331845273,-178.680457,0.00039701,15]
[404617496,1770331845282,-178.680457,0.00039701,15]
[404617497,1770331845291,-178.680457,0.00039701,15]
[404617498,1770331845300,-178.680457,0.00039701,15]
[404617499,1770331845309,-470.50225,0.00039701,120]
[404617500,1770331845319,-470.50225,0.00039701,120]
[404617501,1770331845328,-470.50225,0.00039701,120]
[404617502,1770331845338,-470.50225,0.00039701,120]
[404617503,1770331845347,-25213.1406784,0.00039701,2]
[404617504,1770331845356,-556.838025,0.00039701,2]
[404617505,1770331845365,-22758.9654639,0.00039701,2]
[404617506,1770331845375,-6303.8258976,0.00039701,2]
[404617507,1770331845384,-1115.5575243,0.00039701,2]
[404617508,1770331845393,-1575.1567345,0.00039704,7]
[404617509,1770331845403,-28040.799999,0.00039704,7]
[404617510,1770331845412,-300.0,0.00039704,2]
[404617511,1770331845421,-18512.88855886,0.00039704,2]
[404617512,1770331845431,-244.79722189,0.00039704,10]
[404617513,1770331845440,-515.22915234,0.00039704,2]
[404617515,1770331845449,-197.99859174,0.00039704,12]
[404617516,1770331845459,-7845.21977356,0.00039704,2]
[404617517,1770331845469,-299.31614309,0.00039704,2]
[404617518,1770331845478,-749.85190849,0.00039704,2]
[404617519,1770331845487,-200.0,0.00039704,10]
[404617520,1770331845496,-498.0,0.00039704,7]
[404617521,1770331845505,-156.64094527,0.00039704,7]
[404617523,1770331845515,-827.63543782,0.00039704,15]
[404617524,1770331845523,-179.13174784,0.00039704,7]
[404617525,1770331845533,-158.0,0.00039704,10]
[404617526,1770331845542,-344.22796065,0.00039704,10]
[404617527,1770331845551,-245.55053783,0.00039704,10]
[404617528,1770331845560,-150.0,0.00039704,7]
[404617529,1770331845569,-40062.63745562,0.00039704,2]
[404617530,1770331845578,-150.0,0.00039704,2]
[404617531,1770331845587,-1303.85188646,0.00039704,2]
[404617532,1770331845596,-92291.73500098,0.00039704,2]
[404617533,1770331845606,-173358.66012461,0.00039704,5]
[404617534,1770331845616,-19018.18486381,0.00039704,20]
[404617535,1770331845625,-315116.21306588,0.00039704,30]
[404617536,1770331845634,-77254.47555542,0.00039704,120]
[404617537,1770331845643,-10339.62987808,0.00039704,2]
[404617538,1770331845653,-687.09,0.00039704,90]
[404617539,1770331845662,-306.0506361,0.00039704,7]
[404617541,1770331845671,-183.9654156,0.00039704,7]
[404617542,1770331845680,-605.09057,0.00039704,7]
[404617544,1770331845689,-605.09057,0.00039704,7]
[404617545,1770331845698,-306.0506361,0.00039704,7]
[404617546,1770331845708,-306.0506361,0.00039704,7]
[404617547,1770331845717,-548.8745508,0.00039704,7]
[404617548,1770331845726,-605.09057,0.00039704,7]
[404617549,1770331845735,-306.0506361,0.00039704,7]
[404617550,1770331845744,-605.09057,0.00039704,7]
[404617551,1770331845753,-306.0506361,0.00039704,7]
[404617552,1770331845763,-431.0178922,0.00039704,7]
[404617553,1770331845772,-376.8200359,0.00039704,7]
[404617554,1770331845781,-150.0,0.00039704,7]
[404617555,1770331845790,-195.042592,0.00039704,7]
[404617556,1770331845800,-306.0506361,0.00039704,7]
[404617557,1770331845813,-371.5925872,0.00039704,7]
[404617558,1770331845822,-605.09057,0.00039704,7]
[404617559,1770331845832,-195.042592,0.00039704,7]
[404617560,1770331845844,-162.984779,0.00039704,7]
[404617561,1770331845855,-306.0506361,0.00039704,7]
[404617562,1770331845864,-150.0,0.00039704,7]
[404617563,1770331845874,-195.042592,0.00039704,7]
[404617564,1770331845885,-195.042592,0.00039704,7]
[404617565,1770331845894,-150.0,0.00039704,7]
[404617566,1770331845904,-150.0,0.00039704,7]
[404617567,1770331845914,-412.3695359,0.00039704,7]
[404617568,1770331845924,-150.0,0.00039704,7]
[404617569,1770331845934,-195.042592,0.00039704,7]
[404617570,1770331845944,-150.0,0.00039704,7]
[404617572,1770331845954,-195.042592,0.00039704,7]
[404617574,1770331845966,-246.7,0.00039704,120]
[404617575,1770331845976,-281.25000001,0.00039704,120]
[404617576,1770331845986,-542.1781165,0.00039704,120]
[404617577,1770331845996,-190.75205848,0.00039704,120]
[404617578,1770331846006,-167.90249283,0.00039704,120]
[404617579,1770331846015,-167.90249283,0.00039704,120]
[404617581,1770331846025,-159.34263903,0.00039704,120]
[404617583,1770331846034,-185.00517868,0.00039704,120]
[404617584,1770331846048,-167.90249283,0.00039704,120]
[404617586,1770331846058,-167.90249283,0.00039704,120]
[404617587,1770331846068,-167.90249283,0.00039704,120]
[404617588,1770331846077,-167.90249283,0.00039704,120]
[404617589,1770331846087,-167.90249283,0.00039704,120]
[404617590,1770331846097,-167.90249282,0.00039704,120]
[404617591,1770331846106,-250.0,0.00039704,10]
[404617592,1770331846116,-250.0,0.00039704,10]
[404617593,1770331846125,-250.0,0.00039704,10]
[404617594,1770331846135,-256.497385,0.00039704,10]
[404617595,1770331846145,-407.42646871,0.0003974,2]
[404617596,1770331846155,-451.97,0.00039762,120]
[404617597,1770331846164,-2757.39116684,0.0003979,2]
[404617598,1770331846174,-1000.0,0.000398,60]
[404617599,1770331846183,-370.0,0.00039805,2]
[404617600,1770331846192,-150.0,0.00039834,2]
[404617601,1770331846202,-168.0,0.00039857,7]
[404617602,1770331846214,-451.97,0.00039862,120]
[404617603,1770331846224,-1087.23061534,0.00039896,6]
[404617604,1770331846234,-151.0,0.000399,17]
[404617605,1770331846243,-150.65,0.00039902,120]
[404617606,1770331846253,-313.12,0.00039902,120]
[404617607,1770331846263,-161.81,0.00039935,120]
[404617608,1770331846273,-169.9,0.00039935,120]
[404617609,1770331846282,-369.74,0.00039961,120]
[404617610,1770331846291,-451.97,0.00039962,120]
[404617611,1770331846300,-168.0,0.00039985,2]
[404617612,1770331846310,-151.0,0.0003999,120]
[404617613,1770331846320,-151.0,0.0003999,120]
[404617614,1770331846329,-153.62,0.00039998,120]
[404617615,1770331846338,-800.0,0.0004,30]
[404617616,1770331846348,-759742.91936025,0.0004,120]
[404617617,1770331846357,-216.31580414,0.0004,30]
[404617618,1770331846367,-500.0,0.0004,120]
[404617619,1770331846376,-30426.80643044,0.0004,30]
[404617620,1770331846385,-259.10051344,0.0004,10]
[404617621,1770331846395,-1041.66666667,0.0004,3]
[404617622,1770331846404,-500.0,0.0004,2]
[404617623,1770331846414,-741.26793723,0.0004,7]
[404617624,1770331846424,-28481.41,0.0004,14]
[404617625,1770331846434,-480.31,0.0004,7]
[404617626,1770331846443,-741.26793723,0.0004,7]
[404617627,1770331846453,-150.65,0.00040002,120]
[404617628,1770331846465,-313.12,0.00040002,120]
[404617629,1770331846474,-161.81,0.00040035,120]
[404617630,1770331846483,-169.9,0.00040035,120]
[404617631,1770331846492,-369.74,0.00040061,120]
[404617632,1770331846502,-451.97,0.00040062,120]
[404617633,1770331846511,-153.62,0.00040098,120]
[404617634,1770331846521,-2369.49,0.000401,14]
[404617635,1770331846531,-150.65,0.00040102,120]
[404617636,1770331846541,-313.22,0.00040102,120]
[404617637,1770331846551,-161.81,0.00040135,120]
[404617638,1770331846560,-170.08,0.00040135,120]
[404617639,1770331846570,-369.81474518,0.00040161,120]
[404617640,1770331846579,-452.19044577,0.00040162,120]
[404617641,1770331846588,-153.88,0.00040198,120]
[404617642,1770331846597,-741.26793723,0.000402,3]
[404617643,1770331846607,-150.65,0.00040202,120]
[404617644,1770331846616,-161.81,0.00040235,120]
[404617645,1770331846625,-150.65,0.00040302,120]
[404617646,1770331846635,-161.81,0.00040335,120]
[404617647,1770331846644,-600.0,0.00040391,60]
[404617648,1770331846654,-258.2333,0.000404,30]
[404617649,1770331846663,-150.65,0.00040402,120]
[404617650,1770331846673,-304.0,0.00040416,120]
[404617651,1770331846683,-203.0,0.00040429,120]
[404617653,1770331846693,-161.81,0.00040435,120]
[404617654,1770331846702,-29167.97475357,0.00040435,120]
[404617655,1770331846712,-201.0,0.00040492,120]
[404617656,1770331846722,-150.96,0.00040502,120]
[404617657,1770331846731,-161.81,0.00040535,120]
[404617658,1770331846740,-1276.20976333,0.00040547,120]
[404617659,1770331846750,-800.0,0.00040548,30]
[404617660,1770331846759,-161.81,0.00040635,120]
[404617661,1770331846768,-161.81,0.00040735,120]
[404617662,1770331846778,-150.0,0.00040834,2]
[404617663,1770331846787,-161.81,0.00040835,120]
[404617664,1770331846797,-327.67470593,0.00040896,30]
[404617665,1770331846809,-1041.66666667,0.000409,120]
[404617666,1770331846818,-2369.49,0.000409,14]
[404617667,1770331846827,-161.81,0.00040935,120]
[404617668,1770331846837,-160.0,0.00040989,2]
[404617669,1770331846847,-1041.66666667,0.00040989,2]
[404617670,1770331846857,-741.26793723,0.00040989,2]
[404617671,1770331846866,-1505.49,0.00040993,120]
[404617672,1770331846878,-982.51,0.00041,30]
[404617673,1770331846887,-28481.41,0.00041,14]
[404617674,1770331846896,-161.81,0.00041035,120]
[404617675,1770331846906,-168.0,0.00041069,2]
[404617676,1770331846915,-701.31273155,0.00041095,120]
[404617677,1770331846925,-385.57,0.00041096,120]
[404617678,1770331846935,-1189.87,0.00041096,120]
[404617679,1770331846944,-161.81,0.00041135,120]
[404617680,1770331846954,-480.31,0.000412,14]
[404617681,1770331846965,-741.26793723,0.000412,7]
[404617682,1770331846974,-161.81,0.00041235,120]
[404617683,1770331846984,-1141.88757773,0.00041299,5]
[404617684,1770331846994,-151.33353311,0.00041306,60]
[404617685,1770331847003,-161.81,0.00041335,120]
[404617686,1770331847012,-161.81,0.00041435,120]
[404617687,1770331847022,-168.0,0.00041461,2]
[404617688,1770331847031,-161.81,0.00041535,120]
[404617689,1770331847130,-1505.49,0.00041591,120]
[404617690,1770331847140,-161.81,0.00041635,120]
[404617691,1770331847150,-2369.49,0.000417,14]
[404617692,1770331847159,-161.81,0.00041735,120]
[404617693,1770331847168,-158.351,0.00041769,2]
[404617694,1770331847178,-2157.0,0.00041769,2]
[404617695,1770331847187,-632.0,0.00041769,2]
[404617696,1770331847197,-1372.0,0.00041769,2]
[404617697,1770331847207,-428.0,0.00041769,2]
[404617698,1770331847216,-719.0,0.00041769,2]
[404617699,1770331847226,-420.0,0.00041769,2]
[404617700,1770331847235,-150.0,0.00041834,2]
[404617701,1770331847245,-161.81,0.00041835,120]
[404617702,1770331847255,-161.81,0.00041935,120]
[404617703,1770331847264,-160.05,0.00042,14]
[404617704,1770331847273,-28481.41,0.00042,14]
[404617705,1770331847284,-161.81,0.00042035,120]
[404617706,1770331847293,-161.81,0.00042135,120]
[404617707,1770331847303,-1505.49,0.00042189,120]
[404617708,1770331847313,-161.81,0.00042235,120]
[404617709,1770331847323,-161.81,0.00042335,120]
[404617710,1770331847332,-480.31,0.000424,14]
[404617711,1770331847342,-161.81,0.00042435,120]
[404617712,1770331847352,-2369.49,0.000425,14]
[404617713,1770331847362,-201.0,0.00042517,120]
[404617714,1770331847372,-161.81,0.00042535,120]
[404617715,1770331847382,-161.81,0.00042635,120]
[404617716,1770331847391,-327.67470593,0.00042674,30]
[404617717,1770331847401,-161.81,0.00042735,120]
[404617718,1770331847411,-1505.49,0.00042788,120]
[404617719,1770331847420,-982.51,0.000428,30]
[404617720,1770331847430,-150.0,0.00042834,2]
[404617721,1770331847440,-161.81,0.00042835,120]
[404617722,1770331847450,-200.0,0.000429,120]
[404617723,1770331847461,-161.81,0.00042935,120]
[404617724,1770331847471,-28481.41,0.00043,14]
[404617725,1770331847481,-161.81,0.00043035,120]
[404617726,1770331847490,-161.81,0.00043135,120]
[404617727,1770331847500,-161.81,0.00043235,120]
[404617728,1770331847509,-2369.49,0.000433,14]
[404617729,1770331847519,-302.38300406,0.00043313,60]
[404617730,1770331847528,-161.81,0.00043335,120]
[404617731,1770331847537,-1505.49,0.00043386,120]
[404617732,1770331847547,-161.81,0.00043435,120]
[404617733,1770331847556,-48804.84563232,0.000435,120]
[404617734,1770331847566,-151.0,0.000435,120]
[404617735,1770331847575,-151.0,0.000435,120]
[404617736,1770331847584,-426.899026,0.000435,120]
[404617737,1770331847594,-426.899026,0.000435,120]
[404617738,1770331847604,-151.0,0.000435,120]
[404617739,1770331847613,-426.899026,0.000435,120]
[404617740,1770331847622,-151.0,0.000435,120]
[404617741,1770331847632,-426.899026,0.000435,120]
[404617742,1770331847641,-151.0,0.000435,120]
[404617743,1770331847651,-151.0,0.000435,120]
[404617744,1770331847660,-452.064041,0.000435,120]
[404617745,1770331847670,-452.064041,0.000435,120]
[404617746,1770331847679,-452.064041,0.000435,120]
[404617747,1770331847689,-452.064041,0.000435,120]
[404617748,1770331847698,-1847.314657,0.000435,120]
[404617749,1770331847709,-1847.314657,0.000435,120]
[404617750,1770331847719,-1847.314657,0.000435,120]
[404617751,1770331847728,-1847.314657,0.000435,120]
[404617752,1770331847738,-178.680457,0.000435,15]
[404617753,1770331847748,-178.680457,0.000435,15]
[404617754,1770331847757,-178.680457,0.000435,15]
[404617755,1770331847767,-178.680457,0.000435,15]
[404617756,1770331847776,-470.50225,0.000435,120]
[404617757,1770331847786,-470.50225,0.000435,120]
[404617758,1770331847795,-470.50225,0.000435,120]
[404617759,1770331847805,-470.50225,0.000435,120]
[404617760,1770331847818,-161.81,0.00043535,120]
[404617761,1770331847828,-480.31,0.000436,14]
[404617762,1770331847838,-161.81,0.00043635,120]
[404617763,1770331847848,-155.0,0.00043647,120]
[404617764,1770331847858,-161.81,0.00043735,120]
[404617765,1770331847869,-245.65589656,0.000438,30]
[404617766,1770331847881,-1000.0,0.000438,120]
[404617767,1770331847891,-150.0,0.00043834,2]
[404617768,1770331847901,-161.81,0.00043835,120]
[404617769,1770331847911,-161.81,0.00043935,120]
[404617770,1770331847921,-25213.1406784,0.00043951,2]
[404617771,1770331847931,-176.970311,0.00043955,60]
[404617772,1770331847940,-1505.49,0.00043984,120]
[404617773,1770331847950,-28481.41,0.00044,14]
[404617774,1770331847960,-161.81,0.00044035,120]
[404617775,1770331847970,-161.81,0.00044135,120]
[404617776,1770331847980,-161.81,0.00044235,120]
[404617777,1770331847990,-161.81,0.00044335,120]
[404617778,1770331848000,-720.0,0.0004443,60]
[404617779,1770331848009,-161.81,0.00044435,120]
[404617780,1770331848019,-161.81,0.00044535,120]
[404617781,1770331848029,-1505.49,0.00044583,120]
[404617782,1770331848039,-162.11,0.00044635,120]
[404617783,1770331848048,-201.0,0.00044643,120]
[404617784,1770331848058,-151.33353311,0.00044657,60]
[404617785,1770331848068,-6303.8258976,0.00044713,2]
[404617786,1770331848077,-150.0,0.00044769,2]
[404617787,1770331848086,-2157.0,0.00044769,2]
[404617788,1770331848096,-632.0,0.00044769,2]
[404617789,1770331848106,-1372.0,0.00044769,2]
[404617790,1770331848115,-420.0,0.00044769,2]
[404617791,1770331848124,-719.0,0.00044769,2]
[404617792,1770331848134,-420.0,0.00044769,2]
[404617793,1770331848143,-480.31,0.000448,14]
[404617794,1770331848153,-232.93,0.0004481,120]
[404617795,1770331848162,-22758.9654639,0.0004482,2]
[404617796,1770331848171,-150.0,0.00044849,2]
[404617797,1770331848180,-150.0,0.00044849,2]
[404617798,1770331848190,-150.0,0.00044849,2]
[404617799,1770331848199,-1386.73482292,0.00044891,5]
[404617800,1770331848210,-1148.87930525,0.00044891,5]
[404617801,1770331848220,-875.79748668,0.000449,120]
[404617802,1770331848230,-982.51,0.000449,30]
[404617803,1770331848239,-470.62313194,0.00045,120]
[404617804,1770331848249,-883.63879087,0.00045,20]
[404617805,1770331848259,-65806.43055228,0.00045,30]
[404617806,1770331848268,-466.7876859,0.00045,120]
[404617807,1770331848278,-1016.33394124,0.00045,30]
[404617808,1770331848288,-194.29511585,0.00045,2]
[404617809,1770331848298,-28481.41,0.00045,14]
[404617810,1770331848308,-1299.0517787,0.00045154,2]
[404617811,1770331848318,-1505.49,0.00045181,120]
[404617812,1770331848328,-838.34977059,0.000454,120]
[404617813,1770331848337,-804.8697676,0.00045472,2]
[404617814,1770331848347,-244.0,0.0004553,69]
[404617815,1770331848356,-1115.5575243,0.00045545,2]
[404617816,1770331848366,-556.838025,0.00045619,2]
[404617817,1770331848375,-1505.49,0.00045779,120]
[404617818,1770331848384,-759.61328175,0.00046,30]
[404617819,1770331848394,-679.491494,0.00046143,60]
[404617820,1770331848403,-150.0,0.00046159,60]
[404617821,1770331848412,-1240.853632,0.00046159,60]
[404617822,1770331848421,-2331.707264,0.00046159,60]
[404617823,1770331848431,-3422.560896,0.00046159,60]
[404617824,1770331848440,-4513.414528,0.00046159,60]
[404617825,1770331848450,-5604.26816,0.00046159,60]
[404617826,1770331848460,-6695.121792,0.00046159,60]
[404617827,1770331848470,-7785.975424,0.00046159,60]
[404617828,1770331848479,-8876.829056,0.00046159,60]
[404617829,1770331848488,-9967.682689,0.00046159,60]
[404617830,1770331848498,-1505.49,0.00046377,120]
[404617831,1770331848508,-2566.67780285,0.00046379,5]
[404617832,1770331848517,-445.156055,0.00046436,60]
[404617833,1770331848527,-785.408927,0.00046513,60]
[404617834,1770331848536,-997.211903,0.00046513,60]
[404617835,1770331848546,-1209.014879,0.00046513,60]
[404617836,1770331848556,-1420.817855,0.00046513,60]
[404617837,1770331848565,-1632.620831,0.00046513,60]
[404617838,1770331848575,-1844.423806,0.00046513,60]
[404617839,1770331848584,-2056.226782,0.00046513,60]
[404617840,1770331848594,-1505.49,0.00046976,120]
[404617841,1770331848604,-2369.49,0.00047,14]
[404617842,1770331848613,-848.90108541,0.00047012,5]
[404617843,1770331848622,-151.33353311,0.00047072,60]
[404617844,1770331848632,-467.06939972,0.00047083,5]
[404617845,1770331848641,-982.51,0.000471,30]
[404617846,1770331848651,-421.15743,0.00047101,60]
[404617847,1770331848660,-1505.49,0.00047574,120]
[404617848,1770331848670,-150.0,0.00047769,2]
[404617849,1770331848679,-2157.0,0.00047769,2]
[404617850,1770331848688,-632.0,0.00047769,2]
[404617851,1770331848697,-1372.0,0.00047769,2]
[404617852,1770331848707,-420.0,0.00047769,2]
[404617853,1770331848717,-327.303,0.00047769,2]
[404617854,1770331848728,-719.0,0.00047769,2]
[404617855,1770331848738,-150.0,0.00047849,2]
[404617856,1770331848748,-150.0,0.00047849,2]
[404617857,1770331848759,-150.0,0.00047849,2]
[404617858,1770331848768,-150.0,0.00048,120]
[404617859,1770331848855,-1505.49,0.00048172,120]
[404617860,1770331848875,-1597.98687739,0.00048192,5]
[404617861,1770331848886,-694.36090527,0.00048192,5]
[404617862,1770331848896,-200.0,0.000482,120]
[404617863,1770331848906,-25213.1406784,0.00048201,2]
[404617864,1770331848915,-23518.83,0.00048357,14]
[404617865,1770331848925,-500.0,0.00048657,60]
[404617866,1770331848934,-1505.49,0.00048771,120]
[404617867,1770331848944,-166.46569153,0.000488,120]
[404617868,1770331848954,-864.0,0.00048873,120]
[404617869,1770331848964,-50000.0,0.000489,120]
[404617870,1770331848974,-500.0,0.00048912,60]
[404617871,1770331848983,-317.25826853,0.00049,15]
[404617872,1770331848993,-1522.61527313,0.00049,2]
[404617873,1770331849003,-150.0,0.00049,120]
[404617874,1770331849012,-500.0,0.00049015,60]
[404617875,1770331849022,-44230.9,0.00049015,14]
[404617876,1770331849031,-668.12503686,0.00049315,120]
[404617877,1770331849040,-1505.49,0.00049369,120]
[404617878,1770331849050,-982.51,0.000494,30]
[404617879,1770331849060,-99627.5,0.00049639,14]
[404617880,1770331849070,-73096.59,0.00049639,14]
[404617881,1770331849080,-56830.06304798,0.0004968,120]
[404617882,1770331849526,-250.0,0.00036955,2]
[404617883,1770331849536,-500.0,0.00036955,2]
[404617884,1770331849545,-250.0,0.00036955,2]
[404617885,1770331849555,-500.0,0.00036955,2]
[404617886,1770331849564,-250.0,0.00036955,2]
[404617887,1770331849574,-500.0,0.00036955,2]
[404617888,1770331849585,-250.0,0.00036955,2]
[404617889,1770331849595,-250.0,0.00036955,2]
[404617890,1770331849604,-500.0,0.00036955,2]
[404617891,1770331849614,-250.0,0.00036955,2]
[404617892,1770331849623,-250.0,0.00036955,2]
[404617893,1770331849633,-500.0,0.00036955,2]
[404617894,1770331849644,-475.0,0.0003968,120]
[404617895,1770331849653,-224.67868723,0.0003968,120]
[404617896,1770331849817,-211.29331277,0.0003968,120]
[404617897,1770331849827,-43516.17195666,0.0004968,120]
[404617898,1770331849837,-6303.8258976,0.00049725,2]
[404617899,1770331849847,-151.33353311,0.00049734,60]
[404617900,1770331849858,-619.73459446,0.0004987,120]
[404617901,1770331849868,-22758.9654639,0.00049939,2]
[404617902,1770331849878,-1505.49,0.00049967,120]
[404617903,1770331849889,-480.44269768,0.0005,120]
[404617904,1770331849899,-495.47206185,0.0005,30]
[404617905,1770331849908,-25388.69873999,0.0005,120]
[404617906,1770331849918,-199.999999,0.0005,120]
[404617907,1770331849928,-151.0,0.0005,120]
[404617908,1770331849938,-150.0,0.0005,120]
[404617909,1770331849948,-501.1411787,0.0005,120]
[404617910,1770331849958,-560.2,0.00050136,30]
[404617911,1770331849969,-16686.41,0.00050266,14]
[404617912,1770331849978,-150.0,0.000503,60]
[404617913,1770331849989,-500.0,0.0005034,120]
[404617914,1770331849999,-179215.6473678,0.000505,120]
[404617915,1770331850009,-1505.49,0.00050566,120]
[404617916,1770331850019,-1299.0517787,0.00050612,2]
[404617917,1770331850028,-302.4554565,0.00050632,60]
[404617918,1770331850038,-151.3033057,0.00050703,60]
[404617919,1770331850048,-150.0,0.00050769,2]
[404617920,1770331850058,-2157.0,0.00050769,120]
[404617921,1770331850068,-632.0,0.00050769,120]
[404617922,1770331850077,-1372.0,0.00050769,120]
[404617923,1770331850087,-420.0,0.00050769,2]
[404617924,1770331850098,-719.0,0.00050769,2]
[404617925,1770331850108,-560.2,0.00050821,32]
[404617926,1770331850117,-150.0,0.00050849,120]
[404617927,1770331850127,-612.1012722,0.00050852,30]
[404617928,1770331850139,-2624.74,0.00050933,14]
[404617929,1770331850149,-151.0,0.00051,120]
[404617930,1770331850158,-2617.02631696,0.00051,120]
[404617931,1770331850168,-150.0,0.00051,120]
[404617932,1770331850178,-3000.0,0.00051,85]
[404617933,1770331850188,-982.51,0.00051,30]
[404617934,1770331850198,-3000.0,0.0005101,85]
[404617935,1770331850207,-3000.0,0.0005102,85]
[404617936,1770331850219,-3000.0,0.0005103,85]
[404617937,1770331850320,-3000.0,0.0005104,85]
[404617938,1770331850330,-3000.0,0.0005105,85]
[404617939,1770331850340,-3000.0,0.0005106,85]
[404617940,1770331850350,-5129.404018,0.0005107,85]
[404617941,1770331850359,-1505.49,0.00051164,120]
[404617942,1770331850369,-327.0,0.00051233,120]
[404617943,1770331850379,-804.8697676,0.00051252,2]
[404617944,1770331850388,-1115.5575243,0.00051389,2]
[404617945,1770331850397,-560.2,0.00051506,34]
[404617946,1770331850407,-556.838025,0.00051536,2]
[404617947,1770331850416,-11040.17,0.000516,14]
[404617948,1770331850425,-500.0,0.00051644,120]
[404617949,1770331850435,-151.33353311,0.0005175,60]
[404617950,1770331850444,-1505.49,0.00051762,120]
[404617951,1770331850454,-1000.0,0.000518,120]
[404617952,1770331850465,-151.0,0.000519,120]
[404617953,1770331850475,-170.598,0.00051916,94]
[404617954,1770331850484,-560.2,0.00052191,36]
[404617955,1770331850494,-1505.49,0.00052361,120]
[404617956,1770331850503,-25213.1406784,0.00052451,2]
[404617957,1770331850512,-65303.52,0.00052576,14]
[404617958,1770331850522,-560.2,0.00052876,38]
[404617959,1770331850532,-151.0,0.000529,120]
[404617960,1770331850541,-982.51,0.000529,30]
[404617961,1770331850550,-1505.49,0.00052959,120]
[404617962,1770331850559,-151.3033057,0.0005298,60]
[404617963,1770331850569,-93446.48,0.00053,30]
[404617964,1770331850578,-150.0,0.00053,120]
[404617965,1770331850587,-28481.41,0.00053,14]
[404617966,1770331850597,-184116.64,0.00053193,14]
[404617967,1770331850607,-500.0,0.00053425,120]
[404617968,1770331850616,-500.0,0.00053425,120]
[404617969,1770331850626,-178.25329034,0.00053425,120]
[404617970,1770331850635,-150.0,0.00053425,120]
[404617971,1770331850644,-153.1192258,0.00053425,120]
[404617972,1770331850654,-150.0,0.00053425,120]
[404617973,1770331850663,-256.22047236,0.00053425,120]
[404617974,1770331850673,-214.05378658,0.00053425,120]
[404617975,1770331850682,-500.0,0.00053425,120]
[404617976,1770331850692,-500.0,0.00053425,120]
[404617977,1770331850701,-500.0,0.00053425,120]
[404617978,1770331850712,-500.0,0.00053425,120]
[404617979,1770331850721,-467.23421644,0.00053425,120]
[404617980,1770331850730,-150.0,0.00053425,120]
[404617981,1770331850740,-500.0,0.00053425,120]
[404617982,1770331850749,-150.0,0.00053425,120]
[404617983,1770331850758,-150.0,0.00053425,120]
[404617984,1770331850768,-150.0,0.00053425,120]
[404617985,1770331850779,-500.0,0.00053425,120]
[404617986,1770331850789,-150.0,0.00053425,120]
[404617987,1770331850799,-150.0,0.00053425,120]
[404617988,1770331850810,-258.36884435,0.00053425,120]
[404617989,1770331850820,-176.30353914,0.00053425,120]
[404617990,1770331850830,-227.52323605,0.00053425,120]
[404617991,1770331850840,-201.35982162,0.00053425,120]
[404617992,1770331850851,-150.66815794,0.00053425,120]
[404617993,1770331850861,-150.0,0.00053425,120]
[404617994,1770331850870,-150.0,0.00053425,120]
[404617995,1770331850882,-276.59662874,0.00053425,120]
[404617996,1770331850892,-500.0,0.00053425,120]